Cogmind - Beta 14 @@@ ROGUE MODE // 2024.11.02 @ 02:52:03 Player: Kate+Gabe4evr Result: Destroyed by S-43 Plague with Heavy Machine Gun Performance ------------- Evolutions (7) 3500 Regions Visited (16) 3200 Robots Destroyed (146) 730 Value Destroyed (6492) 6492 Prototype IDs (6) 120 Alien Tech Used (0) 0 Bonus (8518) 8518 TOTAL SCORE: 22560 Bonus ------- High Alert Combat Kills 1391 Follower Combat Kills 3052 Entered Garrisons 400 Used RIF Installer 1000 Registered with UFD 300 Built Enhanced Grunts 300 A7 Reached Mainframe 300 Met R17 at Cetus 500 Met R17 at Research 2000 Friendly Fire -725 Cogmind --------- Core Integrity 0/1300 Matter 150/300 Energy 22/100 System Corruption 26% Temperature Cool (0) Movement Core (50) Location -3/Testing Parts ------- > --- POWER (2) -------- (None) > --- PROPULSION (5) --- (None) > --- UTILITY (11) ----- Advanced Gravity Neutralizer Advanced Signal Interpreter Advanced Target Analyzer Relay Coupler [Grunt] (35) > --- WEAPON (3) ------- (None) > --- INVENTORY (5) ---- Micro Nuclear Core Centrium Medium Armor Plating Authchip [R/Combat] Relay Coupler [Demolisher] (20) Relay Coupler [Proto] (9) Peak State ------------ > --- POWER ------------ Quantum Reactor Quantum Reactor > --- PROPULSION ------- Wheel Armored Huge Wheel Armored Huge Wheel > --- UTILITY ---------- Improved Coolant Injector Huge Storage Unit Advanced Signal Interpreter Advanced Signal Interpreter Advanced Target Analyzer Improved Particle Charger Centrium Medium Armor Plating Graphene Brace Hacking Suite Authchip [R/Combat] Advanced Component Analysis Suite > --- WEAPON ----------- Compact HERF Cannon Advanced KE Penetrator Fusion Bomb Launcher > --- INVENTORY -------- Micro Nuclear Core Armored Huge Wheel Advanced Heat Sink Huge Storage Unit Improved Trap Scanner Transport Network Coupler Centrium Medium Armor Plating Centrium Medium Armor Plating Centrium Medium Armor Plating Authchip [R/Combat] Authchip [R/Combat] Authchip [R/Combat] Relay Coupler [Grunt] Relay Coupler [Sentry] Relay Coupler [Sentry] Relay Coupler [Hunter] Relay Coupler [Proto] Heavy Machine Gun KE Penetrator Railgun Improved Grenade Launcher Advanced Remote Datajack Plasma Cutter Heavy Pick [Rating: 131] Favorites ----------- Power Quantum Reactor Engine Angular Momentum Engine Power Core Light Nuclear Core Reactor Quantum Reactor Propulsion Compact Wheel Treads Light Treads Leg Aluminum Leg Wheel Compact Wheel Utility Huge Storage Unit Device Advanced Heat Sink Storage Huge Storage Unit Processor Advanced Targeting Computer Hackware Authchip [R/Combat] Protection Centrium Medium Armor Plating Weapon Advanced KE Penetrator Energy Gun Advanced Variable Charge Gun Energy Cannon Plasma Cannon Ballistic Gun Advanced KE Penetrator Ballistic Cannon Advanced Assault Cannon Launcher Improved Grenade Launcher Special Weapon Advanced Remote Datajack Build | -11 -10 -9 -8 -8 -8 -8 -6 -6 -6 -5 -5 -4 -3 -3 -3 -3 ------- Run | Yrd Mat Mat Mat Sto Rec Scr Fac Ext Cet Fac Gar Fac Res Gar Res Tes Slots Evolved 14 | . . 2 2 . . . 4 . . 2 . 2 2 . . . Power 1 | . . . . . . . 1 . . . . . . . . . Propulsion 3 | . . 1 . . . . 1 . . . . 1 . . . . Utility 9 | . . 1 2 . . . 2 . . 2 . 1 1 . . . Weapon 1 | . . . . . . . . . . . . . 1 . . . Parts Attached 218 | 8 6 18 34 . 4 10 25 24 10 4 21 7 19 16 11 1 Power 38 | 1 . 3 7 . . 1 6 6 3 1 3 . 2 3 2 . Engine 14 | 1 . 3 2 . . 1 5 2 . . . . . . . . Core 14 | . . . 5 . . . 1 4 . . 3 . . 1 . . Reactor 10 | . . . . . . . . . 3 1 . . 2 2 2 . Propulsion 38 | 4 . 3 10 . . 1 5 6 . 1 2 1 4 . 1 . Treads 1 | . . . 1 . . . . . . . . . . . . . Leg 2 | 2 . . . . . . . . . . . . . . . . Wheel 35 | 2 . 3 9 . . 1 5 6 . 1 2 1 4 . 1 . Hover . | . . . . . . . . . . . . . . . . . Flight . | . . . . . . . . . . . . . . . . . Utility 73 | 1 3 5 8 . 2 3 10 6 3 2 8 5 5 7 4 1 Device 28 | . . 1 3 . . 1 4 1 2 1 5 1 4 2 2 1 Storage 3 | 1 1 1 . . . . . . . . . . . . . . Processor 11 | . 2 1 2 . . . . 1 . . 2 1 1 1 . . Hackware 7 | . . . . . . . 1 . . 1 . 1 . 3 1 . Protection 24 | . . 2 3 . 2 2 5 4 1 . 1 2 . 1 1 . Artifact . | . . . . . . . . . . . . . . . . . Weapon 69 | 2 3 7 9 . 2 5 4 6 4 . 8 1 8 6 4 . Energy Gun 13 | 1 2 3 3 . 1 . . . 2 . 1 . . . . . Energy Cannon 7 | . . . . . . 1 . 2 . . . 1 3 . . . Ballistic Gun 33 | 1 1 4 5 . 1 2 4 2 2 . 4 . 3 3 1 . Ballistic Cannon 2 | . . . . . . 2 . . . . . . . . . . Launcher 10 | . . . 1 . . . . . . . 3 . 1 2 3 . Special Weapon 4 | . . . . . . . . 2 . . . . 1 1 . . Impact Weapon . | . . . . . . . . . . . . . . . . . Slashing Weapon . | . . . . . . . . . . . . . . . . . Piercing Weapon . | . . . . . . . . . . . . . . . . . Special Melee Weapon . | . . . . . . . . . . . . . . . . . Unidentified Prototypes 6 | . . . 2 . . . . . 3 . . . . . . 1 Corrupted Parts 5 | . . . . . . . . 1 2 1 . . . 1 . . System Corruption 15 | . . . . . . . . 7 4 2 . . . 2 . . Parts Lost 73 | . 1 6 15 . 1 . 9 2 1 . 12 . 3 6 17 . Power 15 | . . 1 5 . . . 1 . . . 2 . 1 2 3 . Propulsion 16 | . 1 3 4 . . . 2 . . . 1 . 1 2 2 . Utility 28 | . . 2 3 . . . 5 2 . . 7 . 1 2 6 . Weapon 14 | . . . 3 . 1 . 1 . 1 . 2 . . . 6 . Highest Loss Streak 16 | . 1 2 4 . 1 . 4 1 1 . 5 . 1 5 16 . To Critical Strikes 3 | . . . . . . . 2 . 1 . . . . . . . Average Slot Usage (%) 91 | . 92 82 91 100 98 98 93 99 99 88 81 77 88 79 80 15 Engine 4 | . 14 10 2 . . 8 11 4 . . . . . . . . Core 3 | . . . 6 9 9 . 1 8 1 . 3 10 . . . . Reactor 2 | . . . . . . . . . 11 11 6 . 8 8 8 . Wheel 20 | . 23 18 20 27 27 27 24 26 26 17 15 15 16 7 6 . Device 10 | . . 10 8 9 9 9 11 13 13 13 11 8 16 14 13 1 Storage 7 | . 14 11 9 9 9 9 6 6 6 5 5 5 4 4 3 . Processor 11 | . 10 4 18 18 18 18 10 5 6 5 7 13 15 10 9 9 Hackware 4 | . . . . . . . 1 6 6 9 7 5 9 12 18 4 Protection 8 | . . 6 7 9 9 9 11 12 12 11 7 10 4 4 3 . Energy Gun 3 | . 7 9 8 9 3 . . . 4 5 3 . . . . . Energy Cannon 2 | . . . . . . 8 1 2 1 . . 3 5 4 3 . Ballistic Gun 8 | . 21 12 9 9 12 8 10 9 6 5 6 3 2 5 4 . Peak Build Rating 131 | 6 8 13 29 29 30 36 51 60 81 97 101 99 130 131 123 26 Average Rating 56 | 4 7 11 23 29 28 34 46 57 75 91 87 90 119 114 114 20 On Entrance 50 | . 6 7 13 29 29 24 36 46 60 81 97 76 94 130 113 18 Naked Turns . | . . . . . . . . . . . . . . . . . Heaviest Build 167 | 14 18 95 96 95 95 114 147 153 167 166 166 136 157 153 141 . Greatest Support 66 | 32 32 26 48 42 42 42 52 52 52 60 60 50 66 66 56 19 Greatest Overweight (x) 30 | 4 1 9 30 2 2 2 4 3 3 3 3 2 4 4 5 . Average Overweight (x) 2 | . . 3 3 2 2 2 2 2 2 2 2 2 2 3 2 . Largest Inventory Capacity 25 | 8 10 25 25 25 25 25 25 25 25 25 25 25 25 25 25 5 Average Capacity 24 | 6 8 22 25 25 25 25 25 25 25 25 25 25 25 25 24 5 Most Carried 25 | 4 8 23 25 25 25 25 25 25 25 25 25 25 25 25 23 5 Average Carried 22 | 2 7 16 23 25 24 24 24 24 24 24 24 23 24 24 22 5 Final Capacity 25 | 8 10 25 25 25 25 25 25 25 25 25 25 25 25 25 5 5 Final Carried 25 | 4 8 23 25 25 25 25 25 25 25 25 25 24 25 25 5 5 Class Distribution -------------------- 48% | Scavenger-Mutant 26% | Commander-Mutant 10% | Mutant 5% | Scavenger-Gunner 5% | Bothacker-Tank 3% | Scavenger-Tank Dominant Class ---------------- Mutant | -10/Materials Scavenger-Mutant | -9/Materials Scavenger-Mutant | -8/Materials Commander-Mutant | -8/Storage Commander-Mutant | -8/Recycling Commander-Mutant | -8/Scraptown Scavenger-Mutant | -6/Factory Scavenger-Mutant | -6/Extension Scavenger-Mutant | -6/Cetus Scavenger-Mutant | -5/Factory Scavenger-Mutant | -5/Garrison Scavenger-Mutant | -4/Factory Scavenger-Gunner | -3/Research Scavenger-Tank | -3/Garrison Bothacker-Tank | -3/Research Mutant | -3/Testing Resources | -11 -10 -9 -8 -8 -8 -8 -6 -6 -6 -5 -5 -4 -3 -3 -3 -3 ----------- Run | Yrd Mat Mat Mat Sto Rec Scr Fac Ext Cet Fac Gar Fac Res Gar Res Tes Matter Collected 4585 | 207 103 479 848 51 80 102 256 595 180 42 624 36 409 392 181 . Remotely . | . . . . . . . . . . . . . . . . . Salvage Created 6378 | . 252 650 1756 107 57 . 361 619 72 . 983 26 583 569 343 . Parts 357 | . 25 42 86 5 4 . 16 36 3 . 46 6 32 34 22 . Haulers Intercepted 2 | . . 1 1 . . . . . . . . . . . . . Recyclers Shooed 9 | . 1 3 1 . . . . 1 . . . . 2 . 1 . Parts Field Recycled . | . . . . . . . . . . . . . . . . . Retrieved Matter . | . . . . . . . . . . . . . . . . . Parts Self-Destructed . | . . . . . . . . . . . . . . . . . Prevented . | . . . . . . . . . . . . . . . . . Kills | -11 -10 -9 -8 -8 -8 -8 -6 -6 -6 -5 -5 -4 -3 -3 -3 -3 ------- Run | Yrd Mat Mat Mat Sto Rec Scr Fac Ext Cet Fac Gar Fac Res Gar Res Tes Combat Hostiles Destroyed 108 | . 7 13 19 3 1 . 6 8 1 . 22 . 7 14 7 . Guns 77 | . 7 13 16 3 1 . 4 6 1 . 15 . 3 5 3 . Cannons 9 | . . . . . . . 1 2 . . . . 3 1 2 . AOE 21 | . . . 2 . . . 1 . . . 7 . 1 8 2 . Classes Destroyed 16 | . 3 5 2 1 . . 1 . . . 3 . . 1 . . Worker 9 | . . 3 3 . . . 1 . . . . . 2 . . . Builder 8 | . . 1 5 . . . . 1 . . . . . . 1 . Hauler 2 | . . 1 1 . . . . . . . . . . . . . Recycler 9 | . 1 1 6 . . . . 1 . . . . . . . . Operator 2 | . . . . 1 . . . . . . . 1 . . . . Watcher 6 | . . 1 1 1 . . . . . . . . 2 . 1 . Swarmer 30 | . 6 3 . 2 . . 2 . . . 6 . 2 7 2 . Cutter 9 | . . . . . . . . . . . 6 . . . 3 . Grunt 29 | . 1 8 10 1 . . 3 2 . . 2 . . 2 . . Brawler 3 | . . . 1 . . . 2 . . . . . . . . . Duelist 2 | . . . . . . . 1 . . . . . . 1 . . Sentry 19 | . . 2 4 . 1 . . 5 . . 3 . 2 . 2 . Specialist 1 | . . . . . . . . . . . 1 . . . . . Hunter 7 | . . . 4 . . . . 1 . . 1 . 1 . . . Programmer 8 | . . . . . . . . . . . 3 . 2 3 . . Behemoth 1 | . . . . . . . . . . . . . . 1 . . Cetus Guard 1 | . . . . . . . . . 1 . . . . . . . Best Kill Streak 12 | . 4 4 7 2 1 . 3 2 1 . 5 1 4 12 8 . Combat Bots Only 12 | . 3 3 5 2 1 . 3 2 1 . 5 . 2 12 4 . Max Kills in Single Turn 4 | . 1 2 2 2 1 . 2 1 1 . 3 1 2 4 1 . Gunslinging 1 | . . 1 . 1 . . . . . . . . . . . . Exploded 4 | . . . 2 . . . 1 . . . 3 . 1 4 1 . Melee . | . . . . . . . . . . . . . . . . . Uniques/NPCs Destroyed . | . . . . . . . . . . . . . . . . . Combat | -11 -10 -9 -8 -8 -8 -8 -6 -6 -6 -5 -5 -4 -3 -3 -3 -3 -------- Run | Yrd Mat Mat Mat Sto Rec Scr Fac Ext Cet Fac Gar Fac Res Gar Res Tes Hostile Shots Fired 928 | . 41 61 159 . 10 . 45 149 12 12 128 . 78 90 125 18 Missed 239 | . 13 8 45 . 3 . 6 41 3 2 36 . 26 18 33 5 Damage Taken 12521 | . 234 663 1828 26 146 . 896 448 126 175 1984 . 1341 1925 2427 302 Core 2281 | . 64 111 468 16 27 . 38 39 31 12 166 . 202 118 687 302 Absorbed by Shields 691 | . . . . . . . 12 458 60 52 . . . 109 . . Redirected to Shielding 50 | . . . 50 . . . . . . . . . . . . . Ignored by Resistances 559 | . . . . . . . . 138 85 73 263 . . . . . Core Remaining (%) 74 | 100 74 72 . . . 7 . . 87 . 82 100 . . . . Volleys Fired 440 | . 27 48 100 11 6 . 22 35 11 11 73 1 44 24 27 . Largest 3 | . 2 2 2 2 2 . 2 2 2 2 2 1 2 3 3 . Hottest 204 | . 40 88 93 81 88 . 110 120 115 115 115 110 204 181 181 . Shots Fired 807 | . 54 96 193 22 11 . 42 65 21 21 115 1 63 55 48 . Gun 672 | . 54 96 191 22 11 . 30 50 12 21 111 . 16 36 22 . Cannon 107 | . . . . . . . 12 15 9 . . 1 39 13 18 . Launcher 19 | . . . 2 . . . . . . . 4 . 3 4 6 . Special 9 | . . . . . . . . . . . . . 5 2 2 . Kinetic 485 | . 54 62 98 11 8 . 30 50 12 11 75 . 16 36 22 . Thermal 223 | . . 34 93 11 3 . 12 15 9 10 36 . . . . . Explosive 19 | . . . 2 . . . . . . . 4 . 3 4 6 . Electromagnetic 71 | . . . . . . . . . . . . 1 39 13 18 . Robot Hit Streak 23 | . 10 10 14 9 19 . 23 11 7 4 18 4 6 6 4 . Robot Miss Streak 6 | . 5 6 3 2 . . 3 3 2 2 3 . 3 3 3 . Penetration Max 1 | . . . 1 . . . . . . 1 1 . 1 . . . Secondary Targets 7 | . . 1 . 2 . . . 1 . . 1 . . 2 . . Max Gunslinging Chain 1 | . . 1 . 1 . . . 1 . . 1 . . 1 . . Shots Hit Robots 549 | . 32 72 138 17 10 . 32 46 16 15 78 1 36 33 23 . Core Hits 291 | . 16 43 63 7 5 . 16 17 7 6 42 1 20 27 21 . Critical Kills 7 | . . . 1 . . . . . 1 . 3 . 1 . 1 . Critical Parts Destroyed 16 | . 1 . 1 . . . . 1 . 1 7 . 2 2 1 . Critical Strikes 36 | . 1 . 5 . . . . 1 1 1 10 . 9 5 3 . Burn 3 | . . . 3 . . . . . . . . . . . . . Destroy 26 | . 1 . 2 . . . . 1 1 1 10 . 3 4 3 . Corrupt 7 | . . . . . . . . . . . . . 6 1 . . Melee Attacks . | . . . . . . . . . . . . . . . . . Impact . | . . . . . . . . . . . . . . . . . Slashing . | . . . . . . . . . . . . . . . . . Piercing . | . . . . . . . . . . . . . . . . . Sneak Attacks . | . . . . . . . . . . . . . . . . . Combat Hostiles . | . . . . . . . . . . . . . . . . . Follow-up Attacks . | . . . . . . . . . . . . . . . . . Damage Inflicted 16098 | . 330 996 2433 226 173 . 885 1216 487 618 3009 45 1374 2842 1464 . Guns 9633 | . 330 996 2310 226 170 . 473 870 245 504 2088 . 339 713 369 . Cannons 2340 | . . . . . . . 253 346 242 . . 45 790 349 315 . Explosions 4101 | . . . 123 . . . 159 . . 114 921 . 224 1780 780 . Melee . | . . . . . . . . . . . . . . . . . Ramming 24 | . . . . . 3 . . . . . . . 21 . . . Kinetic 7079 | . 330 611 1312 97 120 . 473 870 245 322 1278 . 339 713 369 . Thermal 3509 | . . 385 998 129 50 . 253 346 242 296 810 . . . . . Explosive 3987 | . . . 123 . . . 159 . . . 921 . 224 1780 780 . Electromagnetic 1499 | . . . . . . . . . . . . 45 790 349 315 . Impact . | . . . . . . . . . . . . . . . . . Slashing . | . . . . . . . . . . . . . . . . . Piercing . | . . . . . . . . . . . . . . . . . Highest Corruption 26 | . . . 1 1 1 1 14 21 25 3 8 . 9 13 25 26 Average Corruption 9 | . . . 1 1 1 1 6 17 24 2 3 . 8 11 13 25 Corruption Purged 7 | . . . . . . 1 . . . . 6 . . . . . Corruption Blocked . | . . . . . . . . . . . . . . . . . Effects 217 | . . . 4 3 8 1 13 57 26 3 27 . 28 19 25 3 Message Errors 59 | . . . 1 1 4 . 3 17 10 1 6 . 4 6 5 1 Matter Fused 45 | . . . . 1 2 . 2 13 2 1 6 . 7 6 5 . Heat Flow Errors 20 | . . . . . . . 2 3 3 . 1 . 2 . 8 1 Energy Discharges 21 | . . . 1 . . . 2 9 1 . 2 . 3 1 2 . Parts Rejected 1 | . . . . . . . . . . . . . . 1 . . Parts Fused 4 | . . . . . . . . . 2 . 1 . . 1 . . Data Loss (minor) 26 | . . . . . . 1 2 6 5 . 6 . 4 1 1 . Data Loss (major) 12 | . . . 1 1 2 . 1 2 1 1 . . 3 . . . Misfires 9 | . . . . . . . . 2 1 . . . 2 2 2 . Alerts 9 | . . . 1 . . . 1 1 1 . 3 . 2 . . . Misdirections 4 | . . . . . . . . 1 . . . . . . 2 1 Weapon Failures 7 | . . . . . . . . 3 . . 2 . 1 1 . . Overload Shots . | . . . . . . . . . . . . . . . . . Overflow Damage 331 | . . . . . . . . . . 24 25 . 58 175 49 . Projectiles 11 | . . . . . . . . . . . . . 7 . 4 . Explosions 320 | . . . . . . . . . . 24 25 . 51 175 45 . Melee . | . . . . . . . . . . . . . . . . . Knockbacks . | . . . . . . . . . . . . . . . . . Impact . | . . . . . . . . . . . . . . . . . Kinetic . | . . . . . . . . . . . . . . . . . Secondary . | . . . . . . . . . . . . . . . . . Self-Inflicted Damage 404 | . . . . . 1 . 45 . . . 203 . 106 49 . . Shots 8 | . . . . . . . 1 . . . 4 . 2 1 . . Rammed 2 | . . . . . 1 . . . . . . . 1 . . . Targets Rammed 2 | . . . . . 1 . . . . . . . 1 . . . Kicked . | . . . . . . . . . . . . . . . . . Crushed . | . . . . . . . . . . . . . . . . . Highest Temperature 279 | . 6 34 237 . 16 . 183 205 252 136 112 30 187 198 279 179 Average Temperature 66 | . 6 15 84 . 8 . 37 54 101 44 38 22 81 100 107 110 Received Heat Transfer 1821 | . 18 282 657 9 45 . 107 207 . 46 201 . 9 132 108 . Effects 3 | . . . . . . . . . . . . . . . 3 . Interference 3 | . . . . . . . . . . . . . . . 3 . Siege Activations . | . . . . . . . . . . . . . . . . . Robots Corrupted . | . . . . . . . . . . . . . . . . . Combat Hostiles . | . . . . . . . . . . . . . . . . . Parts Fried 5 | . . . . . . . . . . . . . 2 . 3 . Impact Corruptions . | . . . . . . . . . . . . . . . . . Robots Melted 1 | . . . 1 . . . . . . . . . . . . . Combat Hostiles 1 | . . . 1 . . . . . . . . . . . . . Parts Melted 10 | . . . 2 5 2 . . . . . . . 1 . . . Heat Transferred 6479 | . . 743 2716 333 111 . 500 472 296 272 1036 . . . . . Parts Sabotaged . | . . . . . . . . . . . . . . . . . Parts Stolen . | . . . . . . . . . . . . . . . . . Parts Stripped . | . . . . . . . . . . . . . . . . . Power Chain Reactions . | . . . . . . . . . . . . . . . . . Alert | -11 -10 -9 -8 -8 -8 -8 -6 -6 -6 -5 -5 -4 -3 -3 -3 -3 ------- Run | Yrd Mat Mat Mat Sto Rec Scr Fac Ext Cet Fac Gar Fac Res Gar Res Tes Peak Influence 1821 | . 211 254 489 680 315 . 142 717 349 1054 1821 980 687 878 582 294 Initial 955 | . . 89 79 206 265 . . . 338 176 737 955 514 357 493 258 Average 456 | . 79 164 243 442 223 . 69 260 321 498 1493 958 529 734 506 264 Maximum Alert Level 5 | . 1 1 2 2 1 . . 3 1 3 5 3 2 3 2 1 Low Security (%) 32 | 100 79 75 34 . 45 . 100 49 5 16 . . . . . . Level 1 28 | . 20 24 60 41 54 . . 20 94 47 . . 7 18 9 100 Level 2 20 | . . . 5 58 . . . 28 . 9 . . 92 5 90 . Level 3 8 | . . . . . . . . 2 . 25 10 100 . 76 . . Level 4 4 | . . . . . . . . . . . 38 . . . . . Level 5 5 | . . . . . . . . . . . 51 . . . . . High Security . | . . . . . . . . . . . . . . . . . Max Security . | . . . . . . . . . . . . . . . . . Squads Dispatched 40 | . 1 3 3 2 . . 5 3 . 4 . . 4 . 14 1 Investigation 6 | . . . . . . . 1 1 . . . . 2 . 1 1 Extermination 2 | . . . . . . . 1 . . . . . . . 1 . Reinforcement 21 | . 1 3 3 2 . . . 2 . 2 . . 2 . 6 . Assault 2 | . . . . . . . . . . 2 . . . . . . Garrison 9 | . . . . . . . 3 . . . . . . . 6 . Intercept . | . . . . . . . . . . . . . . . . . Searches Triggered . | . . . . . . . . . . . . . . . . . Construction Impeded 2 | . . . 1 . . . . . . 1 . . . . . . Haulers Reinforced 1 | . . . . . . . . . . . . . 1 . . . Active Scanning Responses . | . . . . . . . . . . . . . . . . . Cargo Convoy Interrupts . | . . . . . . . . . . . . . . . . . Stealth | -11 -10 -9 -8 -8 -8 -8 -6 -6 -6 -5 -5 -4 -3 -3 -3 -3 --------- Run | Yrd Mat Mat Mat Sto Rec Scr Fac Ext Cet Fac Gar Fac Res Gar Res Tes Distress Signals 24 | . 2 2 4 1 . . . 2 2 1 1 . 3 . 6 . Communications Jammed . | . . . . . . . . . . . . . . . . . Distress Signals . | . . . . . . . . . . . . . . . . . Times Spotted 256 | . 11 24 34 13 3 . 13 29 9 16 34 2 24 24 14 6 Peak Tracking Total 8 | . 7 5 8 6 1 . 3 7 5 6 6 1 4 8 6 7 Tactical Retreats 16 | . 1 1 5 . . . 1 3 . . 1 . 1 1 1 1 Traps | -11 -10 -9 -8 -8 -8 -8 -6 -6 -6 -5 -5 -4 -3 -3 -3 -3 ------- Run | Yrd Mat Mat Mat Sto Rec Scr Fac Ext Cet Fac Gar Fac Res Gar Res Tes Traps Triggered 24 | . . 1 1 . . . 3 3 . 1 6 . 1 6 2 . Indirectly . | . . . . . . . . . . . . . . . . . Trap Hack Attempts . | . . . . . . . . . . . . . . . . . Triggered . | . . . . . . . . . . . . . . . . . Disarmed . | . . . . . . . . . . . . . . . . . Reprogrammed . | . . . . . . . . . . . . . . . . . Reused . | . . . . . . . . . . . . . . . . . Traps Extracted . | . . . . . . . . . . . . . . . . . Installed . | . . . . . . . . . . . . . . . . . Triggered . | . . . . . . . . . . . . . . . . . Machines | -11 -10 -9 -8 -8 -8 -8 -6 -6 -6 -5 -5 -4 -3 -3 -3 -3 ---------- Run | Yrd Mat Mat Mat Sto Rec Scr Fac Ext Cet Fac Gar Fac Res Gar Res Tes Machines Disabled 23 | . . . 3 . . . 2 4 . 7 5 . 1 1 . . Max in Single Turn 2 | . . . 1 . . . 2 1 . 1 1 . . 1 . . Garrison Relay 6 | . . . . . . . . . . . 5 . . 1 . . Machines Repaired . | . . . . . . . . . . . . . . . . . Machines Dismantled 2 | . . . . . . . . 2 . . . . . . . . Machines Sabotaged . | . . . . . . . . . . . . . . . . . Overloaded Fab Kills . | . . . . . . . . . . . . . . . . . Hacking | -11 -10 -9 -8 -8 -8 -8 -6 -6 -6 -5 -5 -4 -3 -3 -3 -3 --------- Run | Yrd Mat Mat Mat Sto Rec Scr Fac Ext Cet Fac Gar Fac Res Gar Res Tes Machines Accessed 45 | . 1 2 . 3 . 7 4 14 3 2 1 2 3 1 1 1 Terminals 28 | . 1 2 . 3 . . 2 14 3 . 1 1 . 1 . . Fabricators 4 | . . . . . . . . . . 1 . 1 1 . . 1 Repair Stations . | . . . . . . . . . . . . . . . . . Recycling Units 3 | . . . . . . . 1 . . . . . 1 . 1 . Scanalyzers . | . . . . . . . . . . . . . . . . . Garrison Access 3 | . . . . . . . 1 . . 1 . . 1 . . . Total Hacks 116 | . 4 3 . 3 . 43 8 31 7 4 1 3 5 1 1 2 Successful 76 | . 2 2 . 3 . 43 3 13 2 1 1 3 2 . 1 . Failed 40 | . 2 1 . . . . 5 18 5 3 . . 3 1 . 2 Catastrophic 5 | . 1 . . . . . 1 2 . . . . . . . 1 Database Lockouts . | . . . . . . . . . . . . . . . . . Manual 35 | . 4 3 . 1 . . 7 15 1 . . 1 2 . 1 . Terminals 57 | . 4 3 . 3 . . 5 31 7 . 1 2 . 1 . . Fabricators 8 | . . . . . . . . . . 3 . 1 2 . . 2 Repair Stations . | . . . . . . . . . . . . . . . . . Recycling Units 5 | . . . . . . . 2 . . . . . 2 . 1 . Scanalyzers . | . . . . . . . . . . . . . . . . . Garrison Access 3 | . . . . . . . 1 . . 1 . . 1 . . . Terminal Hacks 60 | . . . . 3 . 43 1 9 2 . 1 1 . . . . Record 45 | . . . . . . 43 . . 1 . . 1 . . . . Open Door 11 | . . . . 3 . . . 7 1 . . . . . . . Unreport Threat 2 | . . . . . . . 1 1 . . . . . . . . Zone Layout 1 | . . . . . . . . 1 . . . . . . . . Patrol Navigation 1 | . . . . . . . . . . . 1 . . . . . Fabricator Hacks 1 | . . . . . . . . . . . . 1 . . . . Network Status 1 | . . . . . . . . . . . . 1 . . . . Repair Station Hacks . | . . . . . . . . . . . . . . . . . Recycling Unit Hacks . | . . . . . . . . . . . . . . . . . Scanalyzer . | . . . . . . . . . . . . . . . . . Garrison Access Hacks 2 | . . . . . . . . . . 1 . . 1 . . . Unlock Access 2 | . . . . . . . . . . 1 . . 1 . . . Unauthorized Hacks 13 | . 2 2 . . . . 2 4 . . . 1 1 . 1 . Terminals 10 | . 2 2 . . . . 1 4 . . . 1 . . . . Assimilate 1 | . . 1 . . . . . . . . . . . . . . Botnet 7 | . 1 . . . . . 1 4 . . . 1 . . . . Operators 2 | . 1 1 . . . . . . . . . . . . . . Fabricators . | . . . . . . . . . . . . . . . . . Repair Stations 3 | . . . . . . . 1 . . . . . 1 . 1 . Recycling Units . | . . . . . . . . . . . . . . . . . Fedlink 1 | . . . . . . . 1 . . . . . . . . . Scrapoids 2 | . . . . . . . . . . . . . 1 . 1 . Scanalyzers . | . . . . . . . . . . . . . . . . . Garrison Access . | . . . . . . . . . . . . . . . . . Data Cores Recovered 3 | . . . . 1 . . 1 . . . . 1 . . . . Used 1 | . . . . . . . . . . . . 1 . . . . Hacking Detections 23 | . 1 1 . . . . 3 10 3 1 . 1 1 1 . 1 Full Trace Events 2 | . . . . . . . . 1 . . . . . . . 1 Feedback Events . | . . . . . . . . . . . . . . . . . Feedback Blocked . | . . . . . . . . . . . . . . . . . Robot Schematics Acquired . | . . . . . . . . . . . . . . . . . Robots Built . | . . . . . . . . . . . . . . . . . Authchips . | . . . . . . . . . . . . . . . . . Time . | . . . . . . . . . . . . . . . . . Total Robot Build Rating . | . . . . . . . . . . . . . . . . . Part Schematics Acquired . | . . . . . . . . . . . . . . . . . Parts Built . | . . . . . . . . . . . . . . . . . Authchips . | . . . . . . . . . . . . . . . . . Time . | . . . . . . . . . . . . . . . . . Total Part Build Rating . | . . . . . . . . . . . . . . . . . Parts Repaired . | . . . . . . . . . . . . . . . . . Time . | . . . . . . . . . . . . . . . . . Parts Recycled . | . . . . . . . . . . . . . . . . . Recycled Matter . | . . . . . . . . . . . . . . . . . Retrieved Matter . | . . . . . . . . . . . . . . . . . Retrieved Components . | . . . . . . . . . . . . . . . . . Parts Scanalyzed . | . . . . . . . . . . . . . . . . . Part Schematics Acquired . | . . . . . . . . . . . . . . . . . Parts Damaged . | . . . . . . . . . . . . . . . . . Bothacking | -11 -10 -9 -8 -8 -8 -8 -6 -6 -6 -5 -5 -4 -3 -3 -3 -3 ------------ Run | Yrd Mat Mat Mat Sto Rec Scr Fac Ext Cet Fac Gar Fac Res Gar Res Tes Used RIF Installer 2 | . . . . . . . . . . . 1 . . 1 . . Threat Obfuscator 1 | . . . . . . . . . . . . . . 1 . . Robots Hacked 5 | . . . . . . . . . . . . . 2 2 1 . Non-combat 2 | . . . . . . . . . . . . . 2 . . . Combat 3 | . . . . . . . . . . . . . . 2 1 . Robot Hacks Applied 5 | . . . . . . . . . . . . . 2 2 1 . find_fabricator 1 | . . . . . . . . . . . . . 1 . . . find_recycling 1 | . . . . . . . . . . . . . 1 . . . formatsys_high 3 | . . . . . . . . . . . . . . 2 1 . Relay Couplers Released 29 | . . . . . . . . . . . 22 . . 7 . . Machine Destruction 26 | . . . . . . . . . . . 22 . . 4 . . Programmers 3 | . . . . . . . . . . . . . . 3 . . Attached 4 | . . . . . . . . . . . . . . 3 1 . Fabnet Peak Effective % . | . . . . . . . . . . . . . . . . . Robots Rewired 13 | . . . . . . . . 13 . . . . . . . . Allies Hacked . | . . . . . . . . . . . . . . . . . Hacks Repelled . | . . . . . . . . . . . . . . . . . Allies | -11 -10 -9 -8 -8 -8 -8 -6 -6 -6 -5 -5 -4 -3 -3 -3 -3 -------- Run | Yrd Mat Mat Mat Sto Rec Scr Fac Ext Cet Fac Gar Fac Res Gar Res Tes Total Allies 57 | . . . . 10 . . . 24 5 . . . 8 4 6 . Largest Group 13 | . . . . 10 7 7 7 13 11 11 6 . 7 3 8 . Highest-Rated Group 742 | . . . . 173 125 125 125 469 742 735 427 . 394 239 512 . Highest-Rated Ally 159 | . . . . 29 29 29 29 159 144 144 96 . 67 95 64 . Total Orders . | . . . . . . . . . . . . . . . . . Ally Attacks 566 | . . . . 87 6 . 27 140 74 87 57 . 51 26 11 . Total Damage 13059 | . . . . 931 95 . 349 2950 1804 2483 2033 . 1429 633 352 . Kills 89 | . . . . 11 2 . 3 24 8 19 11 . 6 3 2 . Allies Corrupted 7 | . . . . . . . 1 . . . 1 . 1 1 3 . Allies Melted . | . . . . . . . . . . . . . . . . . Intel | -11 -10 -9 -8 -8 -8 -8 -6 -6 -6 -5 -5 -4 -3 -3 -3 -3 ------- Run | Yrd Mat Mat Mat Sto Rec Scr Fac Ext Cet Fac Gar Fac Res Gar Res Tes Robot Analysis Total . | . . . . . . . . . . . . . . . . . Derelict Logs Recovered . | . . . . . . . . . . . . . . . . . Drone Launches . | . . . . . . . . . . . . . . . . . Drone Recoveries . | . . . . . . . . . . . . . . . . . Exploration | -11 -10 -9 -8 -8 -8 -8 -6 -6 -6 -5 -5 -4 -3 -3 -3 -3 ------------- Run | Yrd Mat Mat Mat Sto Rec Scr Fac Ext Cet Fac Gar Fac Res Gar Res Tes Turns Passed 11836 | 79 367 1024 1167 224 728 2126 595 1257 554 366 1039 230 978 508 556 38 Spaces Moved 7451 | 60 263 529 533 147 558 1708 384 710 310 240 613 180 572 252 337 55 Core 92 | 14 . . 1 . . . . . . . . . . . 22 55 Treads 2 | . . . 2 . . . . . . . . . . . . . Legs 23 | 23 . . . . . . . . . . . . . . . . Wheels 7334 | 23 263 529 530 147 558 1708 384 710 310 240 613 180 572 252 315 . Hover . | . . . . . . . . . . . . . . . . . Flight . | . . . . . . . . . . . . . . . . . Fastest Speed 50 | 50 100 90 115 123 123 123 115 120 120 130 123 120 117 123 50 50 Average Speed 126 | 107 102 142 141 123 123 123 120 122 133 130 127 120 121 148 135 50 Slowest Speed 1550 | 250 115 215 1550 123 123 123 146 130 135 135 138 120 143 160 175 50 Overloaded Moves . | . . . . . . . . . . . . . . . . . Propulsion Burnouts . | . . . . . . . . . . . . . . . . . Robots Hopped . | . . . . . . . . . . . . . . . . . Cave-ins Triggered . | . . . . . . . . . . . . . . . . . Exploration Rate (%) 41 | 5 50 46 47 42 96 86 10 70 86 8 62 4 20 37 13 15 Regions Visited 16 Branch Regions 6 Pre-discovered Areas 4 | . . . . . . 4 . . . . . . . . . . Known Exits Taken 5 | . . . . . . . 1 . . 1 . 1 1 . 1 . Unknown Exits Taken 9 | 1 1 1 1 1 1 1 . 1 1 . . . . . . . Scrap Searched 3 | . . . . . . 3 . . . . . . . . . . Spaces Dug . | . . . . . . . . . . . . . . . . . Terrain Destroyed 218 | . . . 8 . . . 23 4 1 19 37 . 9 33 84 . Melee . | . . . . . . . . . . . . . . . . . Projectile 24 | . . . 1 . . . . 4 1 3 9 . . 3 3 . AOE 194 | . . . 7 . . . 23 . . 16 28 . 9 30 81 . Terrain Rammed . | . . . . . . . . . . . . . . . . . Walls Destroyed . | . . . . . . . . . . . . . . . . . Machines Disabled . | . . . . . . . . . . . . . . . . . Actions | -11 -10 -9 -8 -8 -8 -8 -6 -6 -6 -5 -5 -4 -3 -3 -3 -3 --------- Run | Yrd Mat Mat Mat Sto Rec Scr Fac Ext Cet Fac Gar Fac Res Gar Res Tes Total 9092 | 71 311 698 760 172 597 1734 475 1013 446 275 759 193 793 338 392 65 Wait 590 | . 9 86 58 13 12 8 24 117 84 13 5 2 136 8 6 9 Move 7433 | 59 262 528 532 146 557 1707 383 709 309 239 611 179 571 250 336 55 Hop . | . . . . . . . . . . . . . . . . . Pick Up 97 | 2 4 13 17 . 6 1 12 7 12 3 11 1 4 4 . . Fast Attach 87 | 8 2 8 10 . . 4 12 6 4 3 10 3 10 6 . 1 Attach 52 | . . 2 13 . 1 . 9 2 1 1 8 4 2 2 7 . Detach 18 | 2 1 . 4 . 1 . 1 . 2 . 2 3 1 1 . . Swap 81 | . 4 8 11 . 3 6 4 16 5 . 5 . 7 8 4 . Drop 116 | . 2 5 15 . 10 8 8 21 18 5 9 . 9 2 4 . Fire 440 | . 27 48 100 11 6 . 22 35 11 11 73 1 44 24 27 . Melee . | . . . . . . . . . . . . . . . . . Ram 2 | . . . . . 1 . . . . . . . 1 . . . Kick . | . . . . . . . . . . . . . . . . . Crush . | . . . . . . . . . . . . . . . . . Escape Stasis 95 | . . . . . . . . 24 . . 24 . 8 31 8 . Rewire 65 | . . . . 2 . . . 60 . . 1 . . 2 . . Trap . | . . . . . . . . . . . . . . . . . Miscellaneous 16 | . . . . . . . . 16 . . . . . . . . Route ------- -11/Scrapyard -10/Materials (discovered 2 exits: *Mat / [*Min]) -9/Materials -8/Materials -8/Storage -8/Recycling (discovered 2 exits: *Fac / *Scr) -8/Scraptown -6/Factory -6/Extension (discovered 3 exits: *Fac x2 / *Cet) -6/Cetus (discovered 2 exits: *Fac / [*Arc]) -5/Factory -5/Garrison (discovered 3 exits: *Fac x3) -4/Factory (discovered 4 exits: *Res x3 / Arm) -3/Research (discovered 2 exits: Tes / Gar) -3/Garrison -3/Research -3/Testing History --------- Turn | Location | Event 21 | -11/Scrapyard | Discovered new exit (range 16) 80 | -11/Scrapyard | Entered Materials 301 | -10/Materials | Discovered new exit (range 12) 304 | -10/Materials | Build established: Mutant 424 | -10/Materials | Discovered new exit (range 8) 447 | -10/Materials | Entered another Materials area 447 | -9/Materials | Evolved 2 slots: Propulsion x1, Utility x1 1023 | -9/Materials | Build established: Scavenger-Mutant 1357 | -9/Materials | Discovered new exit (range 13) 1471 | -9/Materials | Entered another Materials area 1471 | -8/Materials | Evolved 2 slots: Utility x2 1607 | -8/Materials | Build established: Mutant 1753 | -8/Materials | Lost 4 parts (1p1n1u1w) 1964 | -8/Materials | Core integrity fell below 50% 2010 | -8/Materials | Build established: Scavenger-Mutant 2164 | -8/Materials | Lost 3 parts (1n1u1w) 2551 | -8/Materials | Discovered new exit (range 16) 2621 | -8/Materials | Core integrity fell below 20% 2638 | -8/Materials | Entered Storage 2653 | -8/Storage | Assisted by bots powering up and referring to "LRC-V3" 2817 | -8/Storage | Lost 3 allies 2851 | -8/Storage | Used back door to open Recycling access 2851 | -8/Storage | Discovered new exit (range 4) 2862 | -8/Storage | Entered Recycling 2862 | -8/Recycling | Accompanied by 7 allies 2953 | -8/Recycling | Build established: Commander-Mutant 3433 | -8/Recycling | Discovered new exit (range 15) 3538 | -8/Recycling | Scanned before Scraplab entrance 3557 | -8/Recycling | Entered Scraplab 3567 | -8/Recycling | Discovered new exit (range 3) 3590 | -8/Recycling | Entered Scraptown 3590 | -8/Scraptown | Accompanied by 7 allies 3902 | -8/Scraptown | Visited Cyclists 4152 | -8/Scraptown | Visited Comm Corps 4250 | -8/Scraptown | Visited UFD Registry 4258 | -8/Scraptown | Visited TADAMA 4288 | -8/Scraptown | Visited CR-KLE's Repair Center 4317 | -8/Scraptown | Visited Assassins FH 4347 | -8/Scraptown | Registered with UFD as "Gravripper" 4398 | -8/Scraptown | Entered Cyclist Reading Room 4429 | -8/Scraptown | Visited Awakened 4509 | -8/Scraptown | Visited LU-1G1's Boring Crew 4587 | -8/Scraptown | Visited Observation Area 4656 | -8/Scraptown | Visited Abandonware Association 4674 | -8/Scraptown | Learned abandonware demo "SHUTEYE.EXE" 4674 | -8/Scraptown | Learned abandonware demo "MELTYB.EXE" 4702 | -8/Scraptown | Visited DA-N13 Charitable Foundation 4725 | -8/Scraptown | Found DCF Scrap (26 items) 4838 | -8/Scraptown | Visited Scrap Suit Storage 4880 | -8/Scraptown | Visited Science Testing Area 4906 | -8/Scraptown | Visited Curators Association 4956 | -8/Scraptown | Visited Sword Containment 4980 | -8/Scraptown | Visited Cartography Club 5137 | -8/Scraptown | Discovered new exit (range 5) 5393 | -8/Scraptown | Learned location of Cetus (-6) 5393 | -8/Scraptown | Learned 8 Materials zone layouts 5393 | -8/Scraptown | Learned 16 Materials zone layouts 5393 | -8/Scraptown | Learned 8 Access zone layouts 5393 | -8/Scraptown | Learned 4 Mines zone layouts 5393 | -8/Scraptown | Learned 8 Lower Caves zone layouts 5393 | -8/Scraptown | Learned 16 Upper Caves zone layouts 5393 | -8/Scraptown | Learned 20 Upper Caves zone layouts 5393 | -8/Scraptown | Learned 24 Upper Caves zone layouts 5393 | -8/Scraptown | Learned 12 Proximity Caves zone layouts 5393 | -8/Scraptown | Learned 24 Proximity Caves zone layouts 5393 | -8/Scraptown | Learned Storage emergency access door positions 5393 | -8/Scraptown | Learned location of 1 exit from Factory 5393 | -8/Scraptown | Learned location of 2 exits from Lower Caves 5716 | -8/Scraptown | Entered Factory 5716 | -6/Factory | Accompanied by 7 allies 5716 | -6/Factory | Evolved 4 slots: Power x1, Propulsion x1, Utility x2 5717 | -6/Factory | Identified exit to Extension 5783 | -6/Factory | Garrison activated, responded to threat 5848 | -6/Factory | Lost 7 allies 5861 | -6/Factory | Lost 3 parts (1n1u1w) 6082 | -6/Factory | Build established: Scavenger-Mutant 6191 | -6/Factory | System corruption reached 10% 6223 | -6/Factory | Lost 4 parts (1n3u) 6311 | -6/Factory | Entered Extension 6455 | -6/Extension | Rescued a captive Derelict 6678 | -6/Extension | Rescued A7 6844 | -6/Extension | Rescued a captive Derelict 6845 | -6/Extension | Rescued a captive Derelict 6871 | -6/Extension | Spotted B-75 Beast 6902 | -6/Extension | Allies destroyed B-75 Beast 6908 | -6/Extension | Lost 6 allies 6993 | -6/Extension | Rescued a captive Derelict 7039 | -6/Extension | Discovered new exit (range 3) 7224 | -6/Extension | Lost 4 allies 7234 | -6/Extension | Rescued a captive Derelict 7362 | -6/Extension | Rescued a captive Derelict 7362 | -6/Extension | Rescued a captive Derelict 7391 | -6/Extension | Rescued a captive Derelict 7462 | -6/Extension | Rescued a captive Derelict 7463 | -6/Extension | Rescued a captive Derelict 7524 | -6/Extension | Discovered new exit (range 10) 7526 | -6/Extension | Discovered new exit (range 6) 7568 | -6/Extension | Entered Cetus 7568 | -6/Cetus | Accompanied by 11 allies (A7) 7573 | -6/Cetus | Acquired a Cetus Manufacturing Module code from A7 7586 | -6/Cetus | Spotted Cetus Guard 7586 | -6/Cetus | Spotted Cetus Guard 7588 | -6/Cetus | Spotted Cetus Guard 7588 | -6/Cetus | Spotted Cetus Guard 7608 | -6/Cetus | Allies destroyed Cetus Guard 7613 | -6/Cetus | Allies destroyed Cetus Guard 7628 | -6/Cetus | Lost 4 allies 7631 | -6/Cetus | Allies destroyed Cetus Guard 7799 | -6/Cetus | Started Cetus Manufacturing Module 7811 | -6/Cetus | Escorted A7 to Cetus Mainframe 7824 | -6/Cetus | Manufactured an Enhanced Grunt 7849 | -6/Cetus | Manufactured an Enhanced Grunt 7874 | -6/Cetus | Manufactured an Enhanced Grunt 7899 | -6/Cetus | Manufactured an Enhanced Grunt 7924 | -6/Cetus | Manufactured an Enhanced Grunt 7957 | -6/Cetus | Discovered new exit (range 15) 7985 | -6/Cetus | Spotted Cetus Guard 7985 | -6/Cetus | Spotted Cetus Guard 7986 | -6/Cetus | Destroyed Cetus Guard 7988 | -6/Cetus | Spotted Cetus Guard 7992 | -6/Cetus | Spotted Cetus Guard 7996 | -6/Cetus | Allies destroyed Cetus Guard 8001 | -6/Cetus | Allies destroyed Cetus Guard 8003 | -6/Cetus | Allies destroyed Cetus Guard 8021 | -6/Cetus | Discovered new exit (range 16) 8028 | -6/Cetus | Met Revision 17 8122 | -6/Cetus | Entered Factory 8122 | -5/Factory | Accompanied by 11 allies (A7) 8122 | -5/Factory | Evolved 2 slots: Utility x2 8127 | -5/Factory | Received a hacking code to weaken MAIN.C 8422 | -5/Factory | First assault squad dispatched 8476 | -5/Factory | Identified exit to Garrison 8488 | -5/Factory | Entered Garrison 8488 | -5/Garrison | Accompanied by 6 allies 8578 | -5/Garrison | Triggered checkpoint 8590 | -5/Garrison | Triggered checkpoint 8593 | -5/Garrison | Triggered checkpoint 8654 | -5/Garrison | Lost 6 allies 8740 | -5/Garrison | Triggered checkpoint 8777 | -5/Garrison | Garrison Relay disabled 8817 | -5/Garrison | Installed Relay Interface Framework 8886 | -5/Garrison | Discovered new exit (range 12) 8945 | -5/Garrison | Garrison Relay disabled 8950 | -5/Garrison | Garrison Relay disabled 8979 | -5/Garrison | Garrison Relay disabled 8995 | -5/Garrison | Garrison Relay disabled 9027 | -5/Garrison | Lost 5 parts (1p3u1w) 9238 | -5/Garrison | Discovered new exit (range 14) 9292 | -5/Garrison | Lost 5 parts (1p1n2u1w) 9313 | -5/Garrison | Found Relay Coupler [Proto] 9342 | -5/Garrison | Identified exit to Factory 9505 | -5/Garrison | Discovered exit to Factory (range 13) 9527 | -5/Garrison | Entered Factory 9527 | -4/Factory | Evolved 2 slots: Propulsion x1, Utility x1 9528 | -4/Factory | Identified exit to Research 9528 | -4/Factory | Identified exit to Armory 9739 | -4/Factory | Discovered exit to Research (range 10) 9757 | -4/Factory | Entered Research 9757 | -3/Research | Evolved 2 slots: Utility x1, Weapon x1 9758 | -3/Research | Identified exit to Testing 9964 | -3/Research | Revision forces began assault on 0b10 9965 | -3/Research | Met up with Revision 17++ 10104 | -3/Research | Spotted B-86 Titan 10366 | -3/Research | Scrapoid reinforcements arrived 10392 | -3/Research | Found Corrupted Fusion Bomb Launcher 10464 | -3/Research | Research terminal network offline 10476 | -3/Research | Spotted B-86 Titan 10509 | -3/Research | Lost 3 allies 10642 | -3/Research | Identified exit to Garrison 10735 | -3/Research | Entered Garrison 10735 | -3/Garrison | Accompanied by 1 ally 10764 | -3/Garrison | Found embedded Infiltrators 10822 | -3/Garrison | Triggered checkpoint 10827 | -3/Garrison | System corruption reached 10% 10831 | -3/Garrison | Spotted B-86 Titan 10831 | -3/Garrison | Triggered checkpoint 10845 | -3/Garrison | Triggered checkpoint 10877 | -3/Garrison | Destroyed B-86 Titan 10887 | -3/Garrison | Lost 3 allies 10897 | -3/Garrison | Lost 5 parts (2p1n2u) 10901 | -3/Garrison | Destroyed 12 combat bots 10941 | -3/Garrison | Triggered checkpoint 11111 | -3/Garrison | Discovered new exit (range 11) 11125 | -3/Garrison | Expanded RIF knowledge: Threat Obfuscation 11170 | -3/Garrison | Garrison Relay disabled 11238 | -3/Garrison | Identified exit to Research 11243 | -3/Garrison | Entered Research 11243 | -3/Research | Accompanied by 2 allies 11359 | -3/Research | Scrapoids reinforcements arrived? 11401 | -3/Research | Garrison activated, responded to threat 11465 | -3/Research | Build established: Bothacker-Tank 11570 | -3/Research | Lost 6 allies 11613 | -3/Research | Garrison activated, responded to threat 11779 | -3/Research | Garrison activated, responded to threat 11790 | -3/Research | Discovered exit to Testing (range 15) 11793 | -3/Research | Core integrity fell below 50% 11799 | -3/Research | Entered Testing 11819 | -3/Testing | Lost 16 parts (3p1n6u6w) 11821 | -3/Testing | Core integrity fell below 20% 11837 | -3/Testing | Destroyed by S-43 Plague with Heavy Machine Gun Last Messages --------------- 11788_ R-10 Processor collects Corrupted Carbide Saw. 11788_ Dropped Imp. Coolant Injector. 11788_ K-01 Serf collects debris. 11788_ Adv. Component Analysis Suite destroyed. 11790_ EXIT=FOUND: TESTING 11790_ K-01 Serf collects debris. 11792_ The unstable cave ceiling collapses. 11793_ K-01 Serf collects debris. 11795_ The unstable cave ceiling collapses. 11795_ Quantum Rifle crushed. 11799_ P-80 Master heat damages Adv. Remote Datajack. LOCATION=TESTING GOAL=ESCAPE 11809_ System corrupted: Heat flow error (+225). 11825_ X5%GBXEIQ05LTFI: